fUST/lending_fUST_20240303
["ID","MTS","AMOUNT","RATE_DAILY","PERIOD"]
[316410435,1709471447251,-500.0,0.00023899,2]
[316410437,1709471447262,-500.0,0.00023899,2]
[316410439,1709471447271,-500.0,0.00023899,2]
[316410441,1709471447280,-500.0,0.00023899,2]
[316410443,1709471447289,-271.07207486,0.00023899,2]
[316410445,1709471447299,-500.0,0.00023899,2]
[316410447,1709471447307,-500.0,0.00023899,2]
[316410449,1709471447316,-500.0,0.00023899,2]
[316410451,1709471447325,-500.0,0.00023899,2]
[316410453,1709471447334,-500.0,0.00023899,2]
[316410455,1709471447344,-503.4401283,0.00023899,2]
[316410457,1709471447353,-504.30405759,0.00023899,2]
[316410459,1709471447363,-571.5263932,0.00023899,2]
[316410461,1709471447372,-500.0,0.00023899,2]
[316410463,1709471447382,-500.0,0.00023899,2]
[316410465,1709471447391,-500.0,0.00023899,2]
[316410467,1709471447401,-406.05532802,0.00023899,2]
[316410469,1709471447410,-500.0,0.00023899,2]
[316410471,1709471447419,-500.0,0.00023899,2]
[316410473,1709471447429,-500.0,0.00023899,2]
[316410475,1709471447438,-500.0,0.00023899,2]
[316410477,1709471447447,-500.0,0.00023899,2]
[316410479,1709471447456,-500.0,0.00023899,2]
[316410481,1709471447466,-500.0,0.00023899,2]
[316410483,1709471447476,-500.0,0.00023899,2]
[316410485,1709471447485,-500.0,0.00023899,2]
[316410487,1709471447495,-500.0,0.00023899,2]
[316410489,1709471447505,-500.0,0.00023899,2]
[316410491,1709471447514,-500.0,0.00023899,2]
[316410493,1709471447524,-261.54615543,0.000239,2]
[316410494,1709471447534,-178.31464164,0.000239,2]
[316410496,1709471447543,-393.15396595,0.000239,2]
[316410498,1709471447553,-505.70852008,0.000239,2]
[316410500,1709471447563,-500.0,0.00023969,2]
[316410503,1709471447573,-3805.30438289,0.0002397,2]
[316410508,1709471447617,686.08024275,0.00018806,2]
[316412238,1709471518730,686.08024275,0.00018806,2]
[316412241,1709471532736,686.08024275,0.00018806,2]
[316412242,1709471550731,686.08024275,0.00018806,2]
[316412244,1709471566731,686.08024275,0.00018806,2]
[316412245,1709471586744,686.08024275,0.00018806,2]
[316412246,1709471604732,686.08024275,0.00018806,2]
[316412247,1709471620744,686.08024275,0.00018806,2]
[316412248,1709471636747,686.08024275,0.00018806,2]
[316412250,1709471654752,686.08024275,0.00018806,2]
[316412252,1709471674752,686.08024275,0.00018806,2]
[316412253,1709471696855,216.20389743,0.00018806,2]
[316412299,1709471882280,-528.02051337,0.00020381,2]
[316412300,1709471882301,-2112.65250329,0.00020382,2]
[316412301,1709471882321,-1604.8167343,0.00020382,2]
[316412302,1709471882342,-290.1781689,0.00020382,2]
[316412303,1709471882361,-154.98450155,0.00020382,2]
[316412304,1709471882382,-250.0,0.00020383,2]
[316412305,1709471882402,-1862.5243001,0.00020383,2]
[316412306,1709471882423,-154.98450155,0.00020564,2]
[316412307,1709471882449,-400.94657204,0.00020564,2]
[316412308,1709471882476,-220.1040196,0.00020565,2]
[316412309,1709471882506,-17870.5971408,0.00020921,2]
[316412310,1709471882527,-908.70468583,0.00021149,2]
[316412311,1709471882554,-310.956948,0.00021253,2]
[316412312,1709471882580,-150.0,0.000217,2]
[316412313,1709471882606,-13903.88119448,0.00021892,2]
[316412314,1709471882632,-500.0,0.00021893,2]
[316412315,1709471882658,-500.0,0.00021893,2]
[316412316,1709471882688,-500.0,0.00021893,2]
[316412317,1709471882717,-500.0,0.00021893,2]
[316412318,1709471882748,-500.0,0.00021893,2]
[316412319,1709471882775,-500.0,0.00021893,2]
[316412320,1709471882804,-268.64821619,0.00021893,2]
[316412353,1709472379945,150.0,0.00019792,2]
[316412356,1709472512561,168.73127535,0.0001991,2]
[316412805,1709472637995,-2567.42389482,0.00021438,2]
[316412807,1709472638004,-173.222023,0.00021439,2]
[316412809,1709472638013,-622.78697002,0.00022554,2]
[316412811,1709472638023,-185.15506904,0.00022557,2]
[316412813,1709472638032,-1648.40489349,0.00022792,2]
[316412815,1709472638043,-105.34733765,0.00022792,2]
[316412817,1709472638052,-451.50227744,0.00022792,2]
[316412819,1709472638065,-118.17772256,0.00022792,2]
[316412821,1709472638074,-334.6857427,0.00022792,2]
[316412823,1709472638088,-165.3142573,0.00022792,2]
[316412825,1709472638097,-500.0,0.00022792,2]
[316412827,1709472638106,-500.0,0.00022792,2]
[316412829,1709472638115,-500.0,0.00022792,2]
[316412831,1709472638124,-500.0,0.00022792,2]
[316412833,1709472638133,-500.82128004,0.00022792,2]
[316412835,1709472638142,-331.53776691,0.00022792,2]
[316412837,1709472638151,-500.0,0.00022792,2]
[316412839,1709472638161,-500.0,0.00022792,2]
[316412841,1709472638170,-500.0,0.00022792,2]
[316412843,1709472638179,-500.0,0.00022792,2]
[316412845,1709472638188,-500.0,0.00022792,2]
[316412847,1709472638196,-500.0,0.00022792,2]
[316412849,1709472638208,-500.0,0.00022792,2]
[316412851,1709472638218,-500.0,0.00022792,2]
[316412853,1709472638227,-500.0,0.00022792,2]
[316412855,1709472638236,-500.0,0.00022792,2]
[316412857,1709472638246,-319.88438746,0.00022792,2]
[316412859,1709472638255,-500.0,0.00022792,2]
[316412861,1709472638264,-500.0,0.00022792,2]
[316412864,1709472638274,-500.0,0.00022792,2]
[316412866,1709472638284,-500.0,0.00022792,2]
[316412867,1709472638294,-500.0,0.00022792,2]
[316412870,1709472638305,-500.0,0.00022792,2]
[316412871,1709472638314,-500.0,0.00022792,2]
[316412873,1709472638323,-500.0,0.00022792,2]
[316412876,1709472638333,-500.0,0.00022792,2]
[316412877,1709472638342,-500.0,0.00022792,2]
[316412879,1709472638351,-500.0,0.00022792,2]
[316412881,1709472638360,-500.0,0.00022792,2]
[316412883,1709472638369,-500.0,0.00022792,2]
[316412885,1709472638379,-500.0,0.00022792,2]
[316412887,1709472638388,-500.0,0.00022792,2]
[316412889,1709472638397,-500.0,0.00022792,2]
[316412891,1709472638406,-505.93884431,0.00022792,2]
[316412893,1709472638415,-323.42,0.00022792,2]
[316412895,1709472638424,-872.28,0.00022792,2]
[316412897,1709472638434,-872.28,0.00022792,2]
[316412899,1709472638443,-872.28,0.00022792,2]
[316412902,1709472638453,-872.28,0.00022792,2]
[316412903,1709472638463,-872.28,0.00022792,2]
[316412905,1709472638472,-872.28,0.00022792,2]
[316412908,1709472638482,-500.0,0.00022792,2]
[316412909,1709472638491,-501.94767072,0.00022792,2]
[316412911,1709472638500,-590.21282607,0.00022792,2]
[316412913,1709472638510,-500.0,0.00022792,2]
[316412915,1709472638518,-500.0,0.00022792,2]
[316412917,1709472638528,-500.0,0.00022792,2]
[316412919,1709472638538,-500.0,0.00022792,2]
[316412921,1709472638546,-165.02263966,0.00022792,2]
[316412925,1709472638566,-500.0,0.00022792,2]
[316412927,1709472638577,-500.0,0.00022792,2]
[316412929,1709472638587,-500.0,0.00022792,2]
[316412931,1709472638596,-500.0,0.00022792,2]
[316412933,1709472638605,-500.0,0.00022792,2]
[316412935,1709472638615,-500.0,0.00022792,2]
[316412937,1709472638624,-500.0,0.00022792,2]
[316412939,1709472638633,-500.0,0.00022792,2]
[316412941,1709472638643,-500.0,0.00022792,2]
[316412943,1709472638652,-517.00564149,0.00022792,2]
[316412945,1709472638662,-500.0,0.00022792,2]
[316412947,1709472638671,-198.49502916,0.00022792,2]
[316412950,1709472638688,-301.50497084,0.00022792,2]
[316412952,1709472638698,-500.0,0.00022792,2]
[316412955,1709472638715,-500.0,0.00022792,2]
[316412957,1709472638729,-500.0,0.00022792,2]
[316412959,1709472638742,-500.0,0.00022792,2]
[316412962,1709472638755,-500.0,0.00022792,2]
[316412964,1709472638767,-500.0,0.00022792,2]
[316412966,1709472638780,-500.0,0.00022792,2]
[316412969,1709472638793,-500.0,0.00022792,2]
[316412971,1709472638805,-254.48458496,0.00022792,2]
[316412973,1709472638819,-245.51541504,0.00022792,2]
[316412976,1709472638829,-500.0,0.00022792,2]
[316412978,1709472638841,-500.0,0.00022792,2]
[316412980,1709472638853,-503.84503585,0.00022792,2]
[316412983,1709472638864,-175.27403538,0.00022792,2]
[316412985,1709472638876,-500.0,0.00022792,2]
[316412987,1709472638888,-500.0,0.00022792,2]
[316412988,1709472638899,-268.52483865,0.00022792,2]
[316412990,1709472638910,-26834.99378968,0.00022793,2]
[316412993,1709472638925,-1046.10127469,0.00022793,2]
[316412995,1709472638939,-8292.82646461,0.00022793,2]
[316413429,1709472643028,-6230.0,0.00022793,2]
[316413431,1709472643042,-88237.18084086,0.00022793,2]
[316413434,1709472643056,-1099.34795341,0.00022793,2]
[316413759,1709472646375,-0.29589243,0.00022789,2]
[316414339,1709472653832,181.26872465,0.0002001,2]
[316415063,1709472765973,164.109383,0.00019178,2]
[316415064,1709472768513,1335.890617,0.000199,2]
[316415065,1709472773385,1500.0,0.00018906,2]
[316415066,1709472773415,1500.0,0.00018906,2]
[316415067,1709472773444,1500.0,0.00018906,2]
[316415068,1709472773489,2500.0,0.00018906,2]
[316415069,1709472773524,1628.2886283,0.00018906,2]
[316415072,1709472794764,394.1878927,0.00018905,2]
[316415073,1709472805762,180.345813,0.00019178,2]
[316415074,1709472870211,297.177666,0.00019049,2]
[316415075,1709472870242,43.0620546,0.00019049,2]
[316415078,1709472951555,1140.2596044,0.0001889,2]
[316415079,1709472964773,-400.94657204,0.00019792,2]
[316415080,1709472964796,-744.94284367,0.00019792,2]
[316415081,1709472964823,-154.95351395,0.00019793,2]
[316415082,1709472964846,-488.15707034,0.00019793,2]
[316415084,1709473030911,-155.77454504,0.00019787,2]
[316415085,1709473030932,-154.95351395,0.00019788,2]
[316415086,1709473030952,-154.95351395,0.00019788,2]
[316415087,1709473030972,-9984.48623048,0.00019788,2]
[316415088,1709473030992,-154.95351395,0.00019789,2]
[316415089,1709473031013,-154.95351395,0.00019789,2]
[316415090,1709473031034,-1604.8167343,0.00019789,2]
[316415091,1709473031053,-1464.10843438,0.00019789,2]
[316415092,1709473069365,394.894345,0.00018814,2]
[316415094,1709473100965,154.95351395,0.00018814,2]
[316415095,1709473116969,169.12223138,0.00018814,2]
[316415096,1709473120573,151.66681833,0.00019204,2]
[316415097,1709473173896,-154.9690062,0.00019776,2]
[316415098,1709473173916,-154.95351395,0.00019777,2]
[316415099,1709473173936,-290.1781689,0.00019777,2]
[316415100,1709473173956,-2112.65250329,0.00019777,2]
[316415101,1709473173976,-428.72125377,0.00019777,2]
[316415102,1709473173996,-557.72315857,0.00019778,2]
[316415103,1709473174017,-184.5743335,0.00019779,2]
[316415104,1709473174037,-154.95351395,0.00019779,2]
[316415105,1709473174057,-8012.67615332,0.00019779,2]
[316415106,1709473174077,-300.0,0.00019782,2]
[316415107,1709473174097,-908.70468583,0.00019787,2]
[316415108,1709473174117,-154.95351395,0.00019789,2]
[316415109,1709473174137,-154.95351395,0.00019789,2]
[316415110,1709473174156,-479.777977,0.00019793,2]
[316415111,1709473174177,-538.54259214,0.00019794,2]
[316415112,1709473174198,-155.80137945,0.00019795,2]
[316415113,1709473174218,-26005.86473223,0.00019908,2]
[316415114,1709473248068,-400.94657204,0.00019772,2]
[316415115,1709473248090,-154.9690062,0.00019772,2]
[316415116,1709473248111,-15239.69597525,0.00019773,2]
[316415117,1709473248132,-179.62702339,0.00019773,2]
[316415118,1709473248154,-6915.92648744,0.00019774,2]
[316415119,1709473248176,-744.94284367,0.00019774,2]
[316415120,1709473248196,-528.02051337,0.00019774,2]
[316415121,1709473248218,-154.9690062,0.00019775,2]
[316415122,1709473248239,-13843.955145,0.00019775,2]
[316415123,1709473248260,-16158.94742744,0.00019908,2]
[316415126,1709473323087,200.224916,0.00019178,2]
[316415127,1709473381482,154.9690062,0.00019178,2]
[316415128,1709473395478,90.84751014,0.00019178,2]
[316415129,1709473395510,64.12149606,0.00019178,2]
[316415131,1709473413492,154.9690062,0.00019178,2]
[316415132,1709473419828,154.9690062,0.00019177,2]
[316415133,1709473432212,3000.0,0.00019096,2]
[316415134,1709473433573,154.9690062,0.00019177,2]
[316415136,1709473451486,154.9690062,0.00019177,2]
[316415137,1709473471492,270.154969,0.00019177,2]
[316415138,1709473521459,197.447172,0.00018863,2]
[316415139,1709473542977,303.5479402,0.00018863,2]
[316415140,1709473560295,544.85239794,0.00018862,2]
[316415141,1709473560327,142.55231926,0.00018862,2]
[316415142,1709473564957,528.02051337,0.00018861,2]
[316415143,1709473566987,176.25741817,0.00018861,2]
[316415145,1709473585294,150.0,0.000189,2]
[316415148,1709473716442,250.0,0.00018761,2]
[316415149,1709473722432,3753.1697492,0.00018761,2]
[316415150,1709473722468,5000.0,0.00018761,2]
[316415151,1709473722506,5000.0,0.00018761,2]
[316415152,1709473722538,4119.4957754,0.00018761,2]
[316415155,1709473754247,-400.94657204,0.00019177,2]
[316415156,1709473754267,-154.98450155,0.00019177,2]
[316415157,1709473754286,-162.218823,0.00019178,2]
[316415158,1709473754308,-9131.50695818,0.00019395,2]
[316415159,1709473759468,1862.5243001,0.00018833,2]
[316415160,1709473798544,713.6332863,0.0001883,2]
[316415213,1709473834314,-155.77454504,0.00019173,2]
[316415215,1709473834323,-557.72315857,0.00019174,2]
[316415217,1709473834332,-2112.65250329,0.00019174,2]
[316415219,1709473834341,-154.98450155,0.00019175,2]
[316415221,1709473834350,-290.1781689,0.00019175,2]
[316415223,1709473834359,-1604.8167343,0.00019393,2]
[316415225,1709473834368,-1521.40231482,0.00019394,2]
[316415228,1709473834407,-1073.68704883,0.00019394,2]
[316415230,1709473834416,-212.0,0.00019401,2]
[316415232,1709473834425,-1275.39990246,0.0001942,2]
[316415234,1709473834437,-12568.55524254,0.0001942,2]
[316415235,1709473834446,-4163.75968261,0.00019421,2]
[316415237,1709473834455,-151.51515152,0.00019808,2]
[316415239,1709473834464,-2229.91146725,0.00019908,2]
[316415240,1709473834473,-173.222023,0.00020495,2]
[316415242,1709473834482,-385.86,0.00020537,3]
[316415243,1709473834491,-425.62,0.00020537,3]
[316415245,1709473834500,-500.0,0.00020547,2]
[316415247,1709473834510,-500.0,0.00020547,2]
[316415248,1709473834519,-582.75167796,0.00020547,2]
[316415249,1709473834529,-500.0,0.00020547,2]
[316415250,1709473834541,-500.0,0.00020547,2]
[316415251,1709473834551,-501.23294619,0.00020547,2]
[316415252,1709473834561,-500.0,0.00020547,2]
[316415253,1709473834570,-500.0,0.00020547,2]
[316415254,1709473834579,-500.0,0.00020547,2]
[316415255,1709473834588,-500.0,0.00020547,2]
[316415256,1709473834597,-500.0,0.00020547,2]
[316415257,1709473834606,-500.0,0.00020547,2]
[316415258,1709473834616,-501.35296597,0.00020547,2]
[316415259,1709473834625,-500.0,0.00020547,2]
[316415260,1709473834635,-500.0,0.00020547,2]
[316415261,1709473834644,-500.0,0.00020547,2]
[316415262,1709473834653,-500.0,0.00020547,2]
[316415263,1709473834662,-500.0,0.00020547,2]
[316415264,1709473834671,-500.63624964,0.00020547,2]
[316415265,1709473834680,-500.61188878,0.00020547,2]
[316415266,1709473834689,-501.51822053,0.00020547,2]
[316415267,1709473834698,-500.0,0.00020547,2]
[316415268,1709473834707,-500.74753847,0.00020547,2]
[316415269,1709473834716,-500.0,0.00020547,2]
[316415270,1709473834726,-500.0,0.00020547,2]
[316415271,1709473834735,-501.06561376,0.00020547,2]
[316415272,1709473834744,-500.0,0.00020547,2]
[316415273,1709473834753,-585.42278148,0.00020547,2]
[316415274,1709473834762,-500.0,0.00020547,2]
[316415275,1709473834771,-500.0,0.00020547,2]
[316415276,1709473834780,-503.02160777,0.00020547,2]
[316415277,1709473834791,-500.0,0.00020547,2]
[316415278,1709473834800,-500.0,0.00020547,2]
[316415279,1709473834811,-501.33966473,0.00020547,2]
[316415280,1709473834820,-500.0,0.00020547,2]
[316415281,1709473834829,-502.04607468,0.00020547,2]
[316415282,1709473834838,-500.0,0.00020547,2]
[316415283,1709473834848,-500.0,0.00020547,2]
[316415284,1709473834856,-500.0,0.00020547,2]
[316415285,1709473834865,-500.0,0.00020547,2]
[316415286,1709473834874,-163.28130668,0.00020547,2]
[316415287,1709473834883,-500.0,0.00020547,2]
[316415288,1709473834892,-501.61915474,0.00020547,2]
[316415289,1709473834901,-531.7246896,0.00020547,2]
[316415290,1709473834910,-500.0,0.00020547,2]
[316415291,1709473834918,-500.0,0.00020547,2]
[316415292,1709473834927,-513.19830768,0.00020547,2]
[316415293,1709473834936,-501.09925949,0.00020547,2]
[316415294,1709473834944,-500.0,0.00020547,2]
[316415295,1709473834954,-500.0,0.00020547,2]
[316415296,1709473834963,-500.0,0.00020547,2]
[316415297,1709473834972,-500.0,0.00020547,2]
[316415298,1709473834981,-500.0,0.00020547,2]
[316415299,1709473834990,-500.48761592,0.00020547,2]
[316415300,1709473834999,-500.0,0.00020547,2]
[316415301,1709473835008,-500.0,0.00020547,2]
[316415302,1709473835017,-500.0,0.00020547,2]
[316415303,1709473835026,-500.0,0.00020547,2]
[316415304,1709473835037,-500.0,0.00020547,2]
[316415305,1709473835046,-500.0,0.00020547,2]
[316415306,1709473835055,-203.42282125,0.00020547,2]
[316415307,1709473835065,-500.0,0.00020547,2]
[316415308,1709473835075,-501.5764485,0.00020547,2]
[316415309,1709473835084,-500.0,0.00020547,2]
[316415310,1709473835093,-500.0,0.00020547,2]
[316415311,1709473835103,-500.0,0.00020547,2]
[316415312,1709473835112,-500.0,0.00020547,2]
[316415313,1709473835121,-171.80031986,0.00020547,2]
[316415314,1709473835131,-500.0,0.00020547,2]
[316415315,1709473835140,-500.0,0.00020547,2]
[316415316,1709473835150,-500.0,0.00020547,2]
[316415317,1709473835159,-500.0,0.00020547,2]
[316415318,1709473835169,-500.0,0.00020547,2]
[316415319,1709473835178,-500.0,0.00020547,2]
[316415320,1709473835187,-506.56206425,0.00020547,2]
[316415321,1709473835196,-500.0,0.00020547,2]
[316415322,1709473835206,-500.0,0.00020547,2]
[316415323,1709473835215,-500.0,0.00020547,2]
[316415324,1709473835225,-500.0,0.00020547,2]
[316415325,1709473835236,-500.0,0.00020547,2]
[316415326,1709473835245,-480.76324187,0.00020547,2]
[316415327,1709473835255,-500.0,0.00020547,2]
[316415328,1709473835264,-500.0,0.00020547,2]
[316415329,1709473835274,-915.12,0.00020547,2]
[316415330,1709473835284,-500.0,0.00020547,2]
[316415331,1709473835294,-500.0,0.00020547,2]
[316415332,1709473835304,-500.0,0.00020547,2]
[316415333,1709473835324,-500.0,0.00020547,2]
[316415334,1709473835336,-500.0,0.00020547,2]
[316415335,1709473835346,-500.0,0.00020547,2]
[316415336,1709473835355,-500.0,0.00020547,2]
[316415337,1709473835367,-500.0,0.00020547,2]
[316415338,1709473835378,-500.55412807,0.00020547,2]
[316415339,1709473835389,-500.0,0.00020547,2]
[316415340,1709473835400,-500.0,0.00020547,2]
[316415341,1709473835410,-501.13968663,0.00020547,2]
[316415342,1709473835421,-255.33321828,0.00020547,2]
[316415343,1709473835431,-500.0,0.00020547,2]
[316415344,1709473835441,-235.26684064,0.00020547,2]
[316415345,1709473835450,-500.0,0.00020547,2]
[316415346,1709473835459,-500.0,0.00020547,2]
[316415347,1709473835469,-501.1649039,0.00020547,2]
[316415348,1709473835478,-500.58709093,0.00020547,2]
[316415349,1709473835488,-500.0,0.00020547,2]
[316415350,1709473835497,-500.0,0.00020547,2]
[316415351,1709473835506,-500.0,0.00020547,2]
[316415352,1709473835516,-500.0,0.00020547,2]
[316415353,1709473835526,-500.0,0.00020547,2]
[316415354,1709473835539,-417.76711785,0.00020547,2]
[316415355,1709473835548,-500.0,0.00020547,2]
[316415356,1709473835557,-500.0,0.00020547,2]
[316415357,1709473835567,-500.0,0.00020547,2]
[316415358,1709473835576,-263.75226372,0.00020547,2]
[316415359,1709473835585,-500.81546176,0.00020547,2]
[316415360,1709473835594,-500.0,0.00020547,2]
[316415361,1709473835604,-501.39152937,0.00020547,2]
[316415362,1709473835613,-500.0,0.00020547,2]
[316415363,1709473835623,-500.0,0.00020547,2]
[316415364,1709473835632,-500.0,0.00020547,2]
[316415365,1709473835641,-556.73,0.00020547,2]
[316415366,1709473835651,-500.0,0.00020547,2]
[316415367,1709473835660,-500.0,0.00020547,2]
[316415368,1709473835670,-500.0,0.00020547,2]
[316415369,1709473835680,-500.0,0.00020547,2]
[316415370,1709473835689,-500.0,0.00020547,2]
[316415371,1709473835698,-243.69032569,0.00020547,2]
[316415372,1709473835707,-274.72759022,0.00020547,2]
[316415373,1709473835716,-205.61843266,0.00020547,2]
[316415374,1709473835726,-501.77203509,0.00020547,2]
[316415375,1709473835735,-500.0,0.00020547,2]
[316415376,1709473835745,-502.68830674,0.00020547,2]
[316415377,1709473835754,-500.0,0.00020547,2]
[316415378,1709473835763,-500.0,0.00020547,2]
[316415379,1709473835773,-500.0,0.00020547,2]
[316415380,1709473835782,-500.0,0.00020547,2]
[316415381,1709473835792,-500.0,0.00020547,2]
[316415382,1709473835802,-500.0,0.00020547,2]
[316415383,1709473835811,-500.0,0.00020547,2]
[316415384,1709473835820,-500.0,0.00020547,2]
[316415385,1709473835829,-500.0,0.00020547,2]
[316415386,1709473835839,-501.50719547,0.00020547,2]
[316415387,1709473835848,-4572.34,0.00020547,2]
[316415388,1709473835857,-500.0,0.00020547,2]
[316415389,1709473835866,-500.0,0.00020547,2]
[316415390,1709473835876,-500.0,0.00020547,2]
[316415391,1709473835885,-2052.04,0.00020547,2]
[316415392,1709473835895,-436.54246553,0.00020547,2]
[316415393,1709473835905,-500.0,0.00020547,2]
[316415394,1709473835914,-502.0883525,0.00020547,2]
[316415395,1709473835924,-500.0,0.00020547,2]
[316415396,1709473835933,-500.0,0.00020547,2]
[316415397,1709473835943,-500.0,0.00020547,2]
[316415398,1709473835952,-500.0,0.00020547,2]
[316415399,1709473835962,-500.0,0.00020547,2]
[316415400,1709473835972,-1225.91,0.00020547,2]
[316415401,1709473835982,-500.0,0.00020547,2]
[316415402,1709473835992,-1118.35,0.00020547,2]
[316415403,1709473836002,-503.49810621,0.00020547,2]
[316415404,1709473836012,-500.0,0.00020547,2]
[316415405,1709473836022,-500.0,0.00020547,2]
[316415406,1709473836032,-500.845445,0.00020547,2]
[316415407,1709473836044,-500.0,0.00020547,2]
[316415408,1709473836054,-500.0,0.00020547,2]
[316415409,1709473836064,-500.0,0.00020547,2]
[316415410,1709473836073,-500.0,0.00020547,2]
[316415411,1709473836084,-500.0,0.00020547,2]
[316415412,1709473836093,-500.0,0.00020547,2]
[316415413,1709473836102,-500.0,0.00020547,2]
[316415414,1709473836112,-500.0,0.00020547,2]
[316415415,1709473836122,-595.44437166,0.00020547,2]
[316415416,1709473836131,-500.0,0.00020547,2]
[316415417,1709473836141,-502.36151926,0.00020547,2]
[316415418,1709473836151,-502.30107967,0.00020547,2]
[316415419,1709473836161,-181.57720911,0.00020547,2]
[316415420,1709473836172,-500.0,0.00020547,2]
[316415421,1709473836182,-500.0,0.00020547,2]
[316415422,1709473836191,-500.0,0.00020547,2]
[316415423,1709473836201,-310.10543584,0.00020998,2]
[316415424,1709473836211,-2000.0,0.00021,2]
[316415425,1709473836221,-176.25741817,0.00021337,2]
[316415426,1709473836231,-186.71776351,0.00021338,2]
[316415427,1709473836241,-652.8447218,0.00021338,2]
[316415428,1709473836252,-200.224916,0.00021422,2]
[316415429,1709473836262,-2000.0,0.00022,2]
[316415430,1709473836272,-231.8753485,0.00022356,2]
[316415431,1709473836281,-1000.0,0.000225,2]
[316415432,1709473836292,-400.94657204,0.00022542,2]
[316415433,1709473836302,-7504.58254396,0.00022543,2]
[316415434,1709473836312,-500.0,0.00022547,2]
[316415435,1709473836322,-7519.57452567,0.00022548,2]
[316415436,1709473836332,-1409.92022357,0.00022548,2]
[316415437,1709473836342,-12547.35243744,0.00022548,3]
[316415438,1709473836352,-672.04549966,0.0002269,2]
[316415439,1709473836362,-500.0,0.00022691,2]
[316415440,1709473836372,-500.0,0.00022691,2]
[316415441,1709473836382,-502.56037008,0.00022691,2]
[316415442,1709473836392,-619.68506579,0.00022691,2]
[316415443,1709473836401,-501.17826974,0.00022691,2]
[316415444,1709473836411,-502.08904531,0.00022691,2]
[316415445,1709473836421,-504.12794573,0.00022691,2]
[316415446,1709473836430,-500.0,0.00022691,2]
[316415447,1709473836440,-500.0,0.00022691,2]
[316415448,1709473836449,-500.0,0.00022691,2]
[316415449,1709473836458,-500.0,0.00022691,2]
[316415450,1709473836468,-500.0,0.00022691,2]
[316415451,1709473836478,-500.0,0.00022691,2]
[316415452,1709473836488,-500.0,0.00022691,2]
[316415453,1709473836498,-500.0,0.00022691,2]
[316415454,1709473836507,-500.0,0.00022691,2]
[316415455,1709473836517,-500.0,0.00022691,2]
[316415456,1709473836526,-210.65405992,0.00022691,2]
[316415457,1709473836538,-466.15790035,0.00022691,2]
[316415458,1709473836549,-391.12834095,0.00022691,2]
[316415459,1709473836558,-500.0,0.00022691,2]
[316415460,1709473836567,-500.0,0.00022691,2]
[316415461,1709473836576,-501.98789291,0.00022691,2]
[316415462,1709473836586,-500.0,0.00022691,2]
[316415463,1709473836595,-500.0,0.00022691,2]
[316415464,1709473836604,-500.0,0.00022691,2]
[316415465,1709473836710,-500.0,0.00022691,2]
[316415466,1709473836720,-500.0,0.00022691,2]
[316415467,1709473836729,-639.13850757,0.00022692,2]
[316415468,1709473836738,-500.0,0.00022692,2]
[316415469,1709473836747,-584.56806029,0.00022692,2]
[316415470,1709473836756,-500.0,0.00022692,2]
[316415471,1709473836765,-500.0,0.00022692,2]
[316415472,1709473836774,-500.0,0.00022692,2]
[316415473,1709473836783,-500.0,0.00022692,2]
[316415474,1709473836793,-500.0,0.00022692,2]
[316415475,1709473836802,-500.0,0.00022692,2]
[316415476,1709473836811,-500.0,0.00022692,2]
[316415477,1709473836820,-500.0,0.00022692,2]